Cogmind - Beta 14 @@@ ROGUE MODE // 2024.08.15 @ 22:42:12 Player: ipso Result: Destroyed by Y-45 Defender with Heavy Assault Rifle Performance ------------- Evolutions (1) 500 Regions Visited (3) 600 Robots Destroyed (19) 95 Value Destroyed (455) 455 Prototype IDs (0) 0 Alien Tech Used (0) 0 Bonus (0) 0 TOTAL SCORE: 1650 Bonus ------- None Cogmind --------- Core Integrity 0/400 Matter 300/300 Energy 100/100 System Corruption 4% Temperature Cool (15) Movement Core (350) Ox6 Location -9/Storage Parts ------- > --- POWER (1) -------- (None) > --- PROPULSION (2) --- (None) > --- UTILITY (4) ------ Large Storage Unit Power Shielding > --- WEAPON (2) ------- (None) > --- INVENTORY (15) --- Light Ion Engine Wheel Heat Sink Large Storage Unit Improved Terrain Scanner Drone Bay (2/2) Drone Bay (2/2) Drone Bay (2/2) Drone Bay (2/2) Drone Bay (2/2) Drone Bay (2/2) Drone Bay (2/2) Peak State ------------ > --- POWER ------------ Light Ion Engine > --- PROPULSION ------- Wheel Compact Wheel > --- UTILITY ---------- Large Storage Unit Seismic Detector Light Armor Plating Drone Bay > --- WEAPON ----------- Assault Rifle Light Assault Rifle > --- INVENTORY -------- Light Ion Engine Light Treads Wheel Large Storage Unit Improved Terrain Scanner Power Shielding Drone Bay Drone Bay Drone Bay Drone Bay Drone Bay Drone Bay Drone Bay [Rating: 17] Favorites ----------- Power Light Ion Engine Engine Light Ion Engine Propulsion Light Treads Treads Light Treads Wheel Compact Wheel Utility Seismic Detector Device Seismic Detector Storage Large Storage Unit Protection Light Armor Plating Weapon Light Assault Rifle Ballistic Gun Light Assault Rifle Build | -11 -10 -9 -9 ------- Run | Yrd Mat Mat Sto Slots Evolved 2 | . . 2 . Power . | . . . . Propulsion . | . . . . Utility 2 | . . 2 . Weapon . | . . . . Parts Attached 18 | 7 4 . 7 Power 2 | 1 1 . . Engine 2 | 1 1 . . Core . | . . . . Reactor . | . . . . Propulsion 4 | 2 . . 2 Treads 2 | 2 . . . Leg . | . . . . Wheel 2 | . . . 2 Hover . | . . . . Flight . | . . . . Utility 8 | 2 1 . 5 Device 3 | 1 . . 2 Storage 2 | 1 1 . . Processor . | . . . . Hackware . | . . . . Protection 3 | . . . 3 Artifact . | . . . . Weapon 4 | 2 2 . . Energy Gun . | . . . . Energy Cannon . | . . . . Ballistic Gun 4 | 2 2 . . Ballistic Cannon . | . . . . Launcher . | . . . . Special Weapon . | . . . . Impact Weapon . | . . . . Slashing Weapon . | . . . . Piercing Weapon . | . . . . Special Melee Weapon . | . . . . Unidentified Prototypes . | . . . . Parts Lost 10 | . 1 . 9 Power 2 | . 1 . 1 Propulsion 3 | . . . 3 Utility 3 | . . . 3 Weapon 2 | . . . 2 Highest Loss Streak 4 | . 1 . 4 To Critical Strikes . | . . . . Average Slot Usage (%) 86 | . 96 77 78 Engine 11 | . 13 11 10 Treads 16 | . 28 22 4 Wheel 5 | . . . 12 Device 12 | . 14 11 12 Storage 12 | . 14 11 11 Protection 4 | . . . 9 Ballistic Gun 21 | . 25 22 17 Peak Build Rating 17 | 7 8 8 17 Average Rating 9 | 5 7 7 12 On Entrance 5 | . 7 7 7 Naked Turns . | . . . . Heaviest Build 36 | 14 27 27 36 Greatest Support 40 | 40 40 40 40 Greatest Overweight (x) 6 | 2 . . 6 Average Overweight (x) . | . . . . Largest Inventory Capacity 15 | 8 15 15 15 Average Capacity 11 | 7 9 15 15 Most Carried 15 | 7 8 8 15 Average Carried 8 | 3 7 6 10 Final Capacity 15 | 8 15 15 15 Final Carried 12 | 7 6 7 12 Class Distribution -------------------- 100% | Mutant Dominant Class ---------------- Mutant | -10/Materials Mutant | -9/Materials Mutant | -9/Storage Resources | -11 -10 -9 -9 ----------- Run | Yrd Mat Mat Sto Matter Collected 591 | 243 154 . 194 Remotely . | . . . . Salvage Created 654 | 95 222 . 337 Parts 51 | 4 21 . 26 Haulers Intercepted . | . . . . Recyclers Shooed 1 | . 1 . . Parts Field Recycled . | . . . . Retrieved Matter . | . . . . Parts Self-Destructed . | . . . . Prevented . | . . . . Kills | -11 -10 -9 -9 ------- Run | Yrd Mat Mat Sto Combat Hostiles Destroyed 16 | . 9 . 7 Guns 16 | . 9 . 7 Classes Destroyed 7 | 2 2 . 3 Builder 1 | . . . 1 Tunneler 1 | 1 . . . Recycler 1 | 1 . . . Swarmer 6 | . 6 . . Grunt 7 | . 3 . 4 Brawler 1 | . . . 1 Sentry 2 | . . . 2 Best Kill Streak 4 | 2 4 . 3 Combat Bots Only 4 | . 4 . 3 Max Kills in Single Turn 2 | 2 1 . 1 Gunslinging . | . . . . Exploded . | . . . . Melee . | . . . . Uniques/NPCs Destroyed . | . . . . Combat | -11 -10 -9 -9 -------- Run | Yrd Mat Mat Sto Hostile Shots Fired 202 | . 83 9 110 Missed 55 | . 19 3 33 Damage Taken 1663 | . 588 46 1029 Core 473 | . 70 14 389 Absorbed by Shields . | . . . . Redirected to Shielding 4 | . . . 4 Core Remaining (%) 86 | 100 72 . . Volleys Fired 95 | 5 45 . 45 Largest 2 | 2 2 . 2 Hottest 40 | 40 40 . 40 Shots Fired 143 | 10 60 . 73 Gun 143 | 10 60 . 73 Cannon . | . . . . Launcher . | . . . . Special . | . . . . Kinetic 143 | 10 60 . 73 Thermal . | . . . . Explosive . | . . . . Electromagnetic . | . . . . Robot Hit Streak 13 | 5 7 . 13 Robot Miss Streak 4 | 1 4 . 1 Penetration Max . | . . . . Secondary Targets 2 | . 1 . 1 Max Gunslinging Chain 1 | . 1 . 1 Shots Hit Robots 108 | 8 40 . 60 Core Hits 41 | 3 16 . 22 Critical Kills . | . . . . Critical Parts Destroyed . | . . . . Critical Strikes 1 | . . . 1 Destroy 1 | . . . 1 Melee Attacks . | . . . . Impact . | . . . . Slashing . | . . . . Piercing . | . . . . Sneak Attacks . | . . . . Combat Hostiles . | . . . . Follow-up Attacks . | . . . . Damage Inflicted 1128 | 94 382 . 652 Guns 1063 | 94 368 . 601 Cannons . | . . . . Explosions . | . . . . Melee . | . . . . Ramming 65 | . 14 . 51 Kinetic 1063 | 94 368 . 601 Thermal . | . . . . Explosive . | . . . . Electromagnetic . | . . . . Impact . | . . . . Slashing . | . . . . Piercing . | . . . . Highest Corruption 4 | . . . 4 Average Corruption 3 | . . . 3 Corruption Purged . | . . . . Corruption Blocked . | . . . . Effects 1 | . . . 1 Message Errors 1 | . . . 1 Overload Shots . | . . . . Overflow Damage . | . . . . Projectiles . | . . . . Explosions . | . . . . Melee . | . . . . Knockbacks . | . . . . Impact . | . . . . Kinetic . | . . . . Secondary . | . . . . Self-Inflicted Damage 22 | . . . 22 Shots . | . . . . Rammed 15 | . 2 . 13 Targets Rammed 15 | . 2 . 13 Kicked . | . . . . Crushed . | . . . . Highest Temperature 27 | . 18 . 27 Average Temperature 8 | . 8 . 7 Received Heat Transfer 558 | . 132 . 426 Siege Activations . | . . . . Robots Corrupted . | . . . . Combat Hostiles . | . . . . Parts Fried . | . . . . Impact Corruptions . | . . . . Robots Melted . | . . . . Combat Hostiles . | . . . . Parts Melted . | . . . . Heat Transferred . | . . . . Parts Sabotaged . | . . . . Parts Stolen . | . . . . Parts Stripped . | . . . . Power Chain Reactions . | . . . . Alert | -11 -10 -9 -9 ------- Run | Yrd Mat Mat Sto Peak Influence 246 | 10 246 5 155 Initial 6 | . 6 5 1 Average 44 | 4 71 5 38 Maximum Alert Level 1 | . 1 . . Low Security (%) 94 | 100 84 100 100 Level 1 5 | . 15 . . Level 2 . | . . . . Level 3 . | . . . . Level 4 . | . . . . Level 5 . | . . . . High Security . | . . . . Max Security . | . . . . Squads Dispatched 3 | . 1 . 2 Investigation 1 | . . . 1 Extermination . | . . . . Reinforcement 2 | . 1 . 1 Assault . | . . . . Garrison . | . . . . Intercept . | . . . . Searches Triggered . | . . . . Construction Impeded . | . . . . Haulers Reinforced . | . . . . Active Scanning Responses . | . . . . Cargo Convoy Interrupts . | . . . . Stealth | -11 -10 -9 -9 --------- Run | Yrd Mat Mat Sto Distress Signals 4 | . 3 . 1 Communications Jammed . | . . . . Distress Signals . | . . . . Times Spotted 37 | . 15 6 16 Peak Tracking Total 7 | . 6 6 7 Tactical Retreats . | . . . . Traps | -11 -10 -9 -9 ------- Run | Yrd Mat Mat Sto Traps Triggered 1 | . . . 1 Indirectly . | . . . . Trap Hack Attempts . | . . . . Triggered . | . . . . Disarmed . | . . . . Reprogrammed . | . . . . Reused . | . . . . Traps Extracted . | . . . . Installed . | . . . . Triggered . | . . . . Machines | -11 -10 -9 -9 ---------- Run | Yrd Mat Mat Sto Machines Disabled . | . . . . Max in Single Turn . | . . . . Machines Repaired . | . . . . Machines Dismantled . | . . . . Machines Sabotaged . | . . . . Overloaded Fab Kills . | . . . . Hacking | -11 -10 -9 -9 --------- Run | Yrd Mat Mat Sto Machines Accessed 3 | . 1 . 2 Terminals 3 | . 1 . 2 Fabricators . | . . . . Repair Stations . | . . . . Recycling Units . | . . . . Scanalyzers . | . . . . Garrison Access . | . . . . Total Hacks 9 | . 4 . 5 Successful 4 | . 2 . 2 Failed 5 | . 2 . 3 Catastrophic 2 | . 2 . . Database Lockouts . | . . . . Manual 10 | . 4 . 6 Terminals 9 | . 4 . 5 Fabricators . | . . . . Repair Stations . | . . . . Recycling Units . | . . . . Scanalyzers . | . . . . Garrison Access . | . . . . Terminal Hacks 4 | . 2 . 2 Open Door 1 | . . . 1 Unreport Threat 3 | . 2 . 1 Fabricator Hacks . | . . . . Repair Station Hacks . | . . . . Recycling Unit Hacks . | . . . . Scanalyzer . | . . . . Garrison Access Hacks . | . . . . Unauthorized Hacks . | . . . . Terminals . | . . . . Fabricators . | . . . . Repair Stations . | . . . . Recycling Units . | . . . . Scanalyzers . | . . . . Garrison Access . | . . . . Data Cores Recovered . | . . . . Used . | . . . . Hacking Detections 2 | . 1 . 1 Full Trace Events 1 | . . . 1 Feedback Events . | . . . . Feedback Blocked . | . . . . Robot Schematics Acquired . | . . . . Robots Built . | . . . . Authchips . | . . . . Time . | . . . . Total Robot Build Rating . | . . . . Part Schematics Acquired . | . . . . Parts Built . | . . . . Authchips . | . . . . Time . | . . . . Total Part Build Rating . | . . . . Parts Repaired . | . . . . Time . | . . . . Parts Recycled . | . . . . Recycled Matter . | . . . . Retrieved Matter . | . . . . Retrieved Components . | . . . . Parts Scanalyzed . | . . . . Part Schematics Acquired . | . . . . Parts Damaged . | . . . . Bothacking | -11 -10 -9 -9 ------------ Run | Yrd Mat Mat Sto Used RIF Installer . | . . . . Robots Hacked . | . . . . Non-combat . | . . . . Combat . | . . . . Robot Hacks Applied . | . . . . Relay Couplers Released . | . . . . Fabnet Peak Effective % . | . . . . Robots Rewired . | . . . . Allies Hacked . | . . . . Hacks Repelled . | . . . . Allies | -11 -10 -9 -9 -------- Run | Yrd Mat Mat Sto Total Allies . | . . . . Largest Group . | . . . . Highest-Rated Group . | . . . . Highest-Rated Ally . | . . . . Total Orders . | . . . . Ally Attacks . | . . . . Total Damage . | . . . . Kills . | . . . . Allies Corrupted . | . . . . Allies Melted . | . . . . Intel | -11 -10 -9 -9 ------- Run | Yrd Mat Mat Sto Robot Analysis Total . | . . . . Derelict Logs Recovered . | . . . . Drone Launches 4 | . . . 4 Drone Recoveries 2 | . . . 2 Exploration | -11 -10 -9 -9 ------------- Run | Yrd Mat Mat Sto Turns Passed 1210 | 146 468 85 511 Spaces Moved 562 | 86 222 46 208 Core 27 | 26 . . 1 Treads 395 | 60 222 46 67 Legs . | . . . . Wheels 140 | . . . 140 Hover . | . . . . Flight . | . . . . Fastest Speed 50 | 50 160 160 90 Average Speed 149 | 134 160 160 141 Slowest Speed 350 | 160 160 160 350 Overloaded Moves . | . . . . Propulsion Burnouts . | . . . . Robots Hopped . | . . . . Cave-ins Triggered . | . . . . Exploration Rate (%) 17 | 5 33 5 25 Regions Visited 3 Branch Regions 1 Pre-discovered Areas . | . . . . Known Exits Taken . | . . . . Unknown Exits Taken 3 | 1 1 1 . Scrap Searched . | . . . . Spaces Dug . | . . . . Terrain Destroyed . | . . . . Melee . | . . . . Projectile . | . . . . AOE . | . . . . Terrain Rammed . | . . . . Walls Destroyed . | . . . . Machines Disabled . | . . . . Actions | -11 -10 -9 -9 --------- Run | Yrd Mat Mat Sto Total 790 | 104 284 58 344 Wait 76 | . 6 10 60 Move 559 | 85 221 45 208 Hop . | . . . . Pick Up 18 | 7 2 2 7 Fast Attach 12 | 7 1 . 4 Attach 5 | . 2 . 3 Detach 3 | . 1 . 2 Swap 1 | . 1 . . Drop 5 | . 3 1 1 Fire 95 | 5 45 . 45 Melee . | . . . . Ram 13 | . . . 13 Kick . | . . . . Crush 2 | . 2 . . Escape Stasis . | . . . . Rewire 1 | . . . 1 Trap . | . . . . Miscellaneous . | . . . . Route ------- -11/Scrapyard -10/Materials -9/Materials -9/Storage History --------- Turn | Location | Event 10 | -11/Scrapyard | Discovered new exit (range 14) 147 | -11/Scrapyard | Entered Materials 300 | -10/Materials | Build established: Mutant 590 | -10/Materials | Discovered new exit (range 10) 615 | -10/Materials | Entered another Materials area 615 | -9/Materials | Evolved 2 slots: Utility x2 615 | -9/Materials | Discovered new exit (range 14) 700 | -9/Materials | Entered Storage 1156 | -9/Storage | Lost 4 parts (2u2w) 1197 | -9/Storage | Core integrity fell below 50% 1208 | -9/Storage | Core integrity fell below 20% 1211 | -9/Storage | Destroyed by Y-45 Defender with Heavy Assault Rifle Last Messages --------------- 01158_ Drone destroyed. 01169_ W-16 Scout sends out distress signal. 01178_ Slammed into G-34 Mercenary. 01179_ Slammed into W-16 Scout. 01179_ Wheel destroyed. 01181_ Slammed into Y-45 Defender. 01181_ Destabilizing: System corrupted (+1). 01182_ Slammed into Y-45 Defender. 01184_ Slammed into G-34 Mercenary. 01185_ Com. Wheel destroyed. 01186_ Slammed into G-34 Mercenary. 01186_ Destabilizing: System corrupted (+2). 01190_ Slammed into G-34 Mercenary. 01190_ Destabilizing: System corrupted (+1). 01194_ Slammed into G-34 Mercenary. 01201_ Lgt. Ion Engine destroyed. 01202_ Slammed into G-34 Mercenary. 01205_ >0EN|0T/K6BBZ#VVH=JEH7 01205_ Slammed into G-34 Mercenary. 01208_ G-34 Mercenary destroyed. Map ----- +----------------------------------------------------+ | ?????????????????????????????????????????/ % / """ | | ?????????????????????????????????????????# # """ | | ?????????????????????????????????????????# # | | ?????????????????????????????????????????# # """ | | ?????????????????????????????????????????# # """ | | ?????????????????????????????????????????# # """ | | ?????????????????????????? ??????????????# # | | ?????????????????????????? ??????????????# ##### | | ?????????????????????????? ??????????????# #???? | | ?????????????????????????? ??????????????# #???? | | ?????????????????????????? ??????????????+ ##### | | ?????????????????????????? ??????????????# ## | | ?????????????????????????? ??????????????# ## | | ?????????????????????????# #?????????????# ##= | | ?????????????????????????# #???########### ## | | ?????????????????????????# #???# # # | | ????????????????????????# ???# """"" # # "" | | ????????????????????????# ???# """"" + + "" | | ????????????????????????? ???# """"" # # "" | | ?????????????????######??# #???# # # "" | | ?????????????????# #%#####% """"" ####### "" | | ?????????????????+ /%%%%%/ """"" #?????# | | ?????????????????# #%##### """"" #?????# | | ?????????????????##+###??#%#???# #?????#### | | ????????????????????????##Y##??##########????????? | | ????????????????????????#@%=#????????????????????? | | ??????????????????????? g*T g """"???????????????? | | ?????????????????????# ## # """"???????????????? | | ?????????????????????#??##### """"???????????????? | | ??????????????????????????????""""???????????????? | | ??????????????????????????????? ???????????????? | | ????????????????????????????????##???????????????? | | ?????????????????????????????????????????????????? | | ?????????????????????????????????????????????????? | | ?????????????????????????????????????????????????? | | ?????????????????????????????????????????????????? | | ?????????????????????????????????????????????????? | | ?????????????????????????????????????????????????? | | ?????????????????????????????????????????????????? | | ?????????????????????????????????????????????????? | | ?????????????????????????????????????????????????? | | ?????????????????????????????????????????????????? | | ?????????????????????????????????????????????????? | | ?????????????????????????????????????????????????? | | | | | | | | | | | | | +----------------------------------------------------+ Best States ------------- Heat Dissipation 28 Energy Generation 10 Energy Capacity 250 Matter Stores 300 Matter Capacity 300 Sight Range 16 Terrain Scan Density 10 Armor Coverage 150 Power Shielding 33 Evasion (%) 42 Recoil Reduction 2 Item Schematics ----------------- None Robot Schematics ------------------ None Fabricated ------------ Nothing Alien Tech Used ----------------- None Achievements -------------- None Challenges ------------ None Game ------ Seed AssaultRecoilDiverter Manual? 0 Play Time 00:15:23 Cumulative 7.1 hours Start 2024.08.15 @ 22:25:20 End 2024.08.15 @ 22:42:12 Sessions 1 Manual Loads 0 Difficulty Rogue Special Mode None Game No. 9 Rogue 9 Adventurer 0 Explorer 0 Win Type - Total 0 Types 0/0/0/0/0/0/0/0/0 Lore% 7 Gallery% 13 Achievement% 11 Wizard Run 0 Options --------- Layout 1 ASCII 0 Keyboard 1 Movement Arrows Keybinds 0 Fullscreen 1 Font 48/Smallcaps Map View 50x35 Zoom Use 0% Tactical HUD 1 Map Filters NONE Filters NONE Steam 1 RUN: 13df5ab9-1476-4825-a6a0-0e7fb63d8b28